bitfinex-derivatives/quotes_SOLF0:USTF0_20250227
["timestamp","ask_amount","ask_price","bid_price","bid_amount"]
[1740669062838,1.33598729,137.57,137.46,7.2801]
[1740669063038,1.33598729,137.56,137.41,46.60000525]
[1740669063240,41.25239261,137.6,137.41,46.60000525]
[1740669063439,0.0535565,137.53,137.5,0.04872923]
[1740669063637,0.0535565,137.53,137.46,12.92]
[1740669063839,7.7262,137.6,137.5,0.04872923]
[1740669064040,0.05467494,137.51,137.5,0.04872923]
[1740669064236,0.05467494,137.51,137.49,7.2786]
[1740669064237,3.7321,137.59,137.49,7.2786]
[1740669064436,0.04588002,137.52,137.49,7.32732923]
[1740669064640,3.7321,137.59,137.44,12.9]
[1740669064841,0.0530125,137.52,137.49,0.04872923]
[1740669065232,3.7321,137.59,137.48,7.2792]
[1740669065441,0.04735253,137.52,137.49,0.04846279]
[1740669065642,37.25829261,137.59,137.44,12.9]
[1740669065944,0.04600706,137.52,137.49,0.04872923]
[1740669066340,33.52619261,137.52,137.44,12.9]
[1740669066540,33.57859902,137.52,137.49,0.04872923]
[1740669067545,0.05240641,137.52,137.49,0.04872923]
[1740669067845,0.05240641,137.52,137.45,12.88]
[1740669068046,3.7321,137.59,137.45,12.88]
[1740669068242,1.33597355,137.58,137.45,12.88]
[1740669068443,1.33597355,137.57,137.45,12.88]
[1740669068645,37.25829261,137.59,137.45,12.88]
[1740669068845,0.05459853,137.52,137.51,7.2775]
[1740669069144,37.25829261,137.59,137.45,12.88]
[1740669069345,6.832e-05,137.53,137.45,56.63]
[1740669069738,6.832e-05,137.53,137.52,7.2773]
[1740669070850,6.832e-05,137.53,137.51,168.59408088]
[1740669071351,6.832e-05,137.53,137.52,7.2773]
[1740669073657,6.832e-05,137.53,137.52,29.0973]
[1740669073961,6.832e-05,137.53,137.51,183.07885392]
[1740669074362,5.40554735,137.64,137.61,7.2725]
[1740669074561,4.0703,137.64,137.53,12.84]
[1740669074763,59.41649261,137.64,137.54,21.89]
[1740669074969,59.41649261,137.64,137.63,7.2715]
[1740669075460,51.07459321,137.74,137.55,24.214]
[1740669075667,12.82345253,137.73,137.56,18.8446]
[1740669075863,1.33465253,137.72,137.63,0.05036832]
[1740669076166,1.33465253,137.71,137.56,18.8446]
[1740669076360,0.04820858,137.69,137.66,0.05036832]
[1740669076558,66.83499261,137.73,137.56,18.8446]
[1740669076855,0.04666029,137.69,137.53,12.84]
[1740669077061,66.83499261,137.73,137.53,12.84]
[1740669077265,1.33468771,137.72,137.53,12.84]
[1740669077565,1.33468771,137.71,137.53,12.84]
[1740669077778,62.84989261,137.73,137.54,43.75]
[1740669077960,41.01776143,137.78,137.56,51.053]
[1740669078155,1.33404033,137.77,137.58,43.75]
[1740669078458,37.15846143,137.78,137.6,43.75]
[1740669078459,84.66135404,137.78,137.6,43.75]
[1740669078661,29.31516143,137.78,137.64,21.89]
[1740669078859,29.31516143,137.78,137.76,7.2645]
[1740669079165,29.31516143,137.78,137.72,93.65307741]
[1740669079364,29.36304882,137.78,137.76,0.05485075]
[1740669079557,29.36304882,137.78,137.77,7.2641]
[1740669080068,0.69274882,137.78,137.77,197.5]
[1740669080268,290.11178451,137.83,137.77,219.28]
[1740669080471,271.32133207,137.83,137.77,197.5]
[1740669080672,260.30553207,137.83,137.77,219.28]
[1740669080965,260.30553207,137.83,137.82,7.2615]
[1740669081168,245.30553207,137.83,137.82,13.08]
[1740669081366,245.30553207,137.83,137.82,34.84]
[1740669081668,4.029e-05,137.84,137.82,34.84]
[1740669081858,1.44980065,137.95,137.82,34.84]
[1740669082065,1.44980065,137.95,137.82,13.08]
[1740669082369,1.44980065,137.95,137.82,34.94]
[1740669082864,1.44980065,137.95,137.82,56.7]
[1740669083067,1.44980065,137.95,137.87,0.05572271]
[1740669083362,1.44980065,137.95,137.88,197.38]
[1740669083760,1.44980065,137.95,137.88,219.14]
[1740669084072,58.2886033,137.95,137.88,210.5]
[1740669084367,0.05549634,137.93,137.9,0.05055335]
[1740669084668,1.450116,137.92,137.9,0.05055335]
[1740669085170,58.28891865,137.92,137.83,54.3175578]
[1740669085373,0.05549634,137.93,137.91,110.52019722]
[1740669085668,3.7448,137.94,137.91,54.78139722]
[1740669085867,3.7448,137.94,137.91,36.21109722]
[1740669086171,3.7448,137.94,137.8,197.15857026]
[1740669086560,25.55503739,137.94,137.84,182.961502]
[1740669086763,13.08,137.97,137.84,182.961502]
[1740669087363,13.1,138.02,137.85,8.71245247]
[1740669087564,13.1,138.04,137.85,8.71245247]
[1740669087862,13.1,138.04,137.86,4.0334]
[1740669088069,0.05391699,137.96,137.93,0.0466207]
[1740669088468,13.1,138.04,137.86,4.0334]
[1740669088770,1.33264113,138.03,138.0,116.92360982]
[1740669088973,13.1,138.02,138.0,116.92360982]
[1740669089273,13.1,138.02,137.98,141.66197645]
[1740669089473,34.84,138.02,138.0,0.04933914]
[1740669089774,34.84,138.02,137.98,98.23131559]
[1740669089973,13.1,138.02,137.98,98.23131559]
[1740669090270,34.84,138.02,137.98,38.95030102]
[1740669090872,34.84,138.02,137.99,0.04448614]
[1740669091167,13.1,138.01,137.96,77.90060206]
[1740669091365,0.04879673,138.03,137.96,77.90060206]
[1740669091566,181.55451876,138.07,137.96,77.90060206]
[1740669091567,13.12,138.02,137.96,77.90060206]
[1740669092171,0.04769013,138.0,137.96,41.4680751]
[1740669093264,0.04769013,138.0,137.87,5.8451]
[1740669093468,0.04769013,138.0,137.87,127.641202]
[1740669093669,210.3,138.02,137.87,5.8451]
[1740669093863,0.0503928,137.95,137.9,7.2569]
[1740669094062,0.0503928,137.95,137.87,5.8451]
[1740669094466,0.0503928,137.95,137.89,50.71]
[1740669094863,0.0503928,137.95,137.92,7.2558]
[1740669095065,0.0503928,137.95,137.89,36.22]
[1740669095273,0.0503928,137.95,137.87,5.63257304]
[1740669095478,0.0503928,137.95,137.87,20.12257304]
[1740669095669,0.0503928,137.95,137.87,5.63257304]
[1740669096071,0.0503928,137.95,137.91,14.49]
[1740669096265,0.0503928,137.95,137.92,14.49]
[1740669096576,9.28e-05,137.95,137.92,0.04802458]
[1740669098371,9.28e-05,137.95,137.86,271.38603277]
[1740669098573,9.28e-05,137.95,137.86,393.18213477]
[1740669098770,13.12,137.97,137.86,393.18213477]
[1740669099076,1.33271238,137.96,137.86,271.38603277]
[1740669099271,1.33271238,137.95,137.86,271.38603277]
[1740669099472,0.05144691,137.92,137.86,271.38603277]
[1740669099880,1.33306855,137.91,137.86,271.38603277]
[1740669100177,1.45032632,137.9,137.86,271.38603277]
[1740669100370,1.33325403,137.89,137.86,271.38603277]
[1740669100675,1.33333591,137.88,137.86,271.38603277]
[1740669100870,1.33333591,137.87,137.86,271.38603277]
[1740669101067,1.33333591,137.87,137.86,235.12603277]
[1740669101273,23.09333591,137.87,137.86,155.17350581]
[1740669101473,23.09333591,137.87,137.86,75.38350581]
[1740669102075,23.09333591,137.87,137.69,3.7851]
[1740669102276,1.33333591,137.86,137.71,118.88350581]
[1740669102475,197.16,137.88,137.72,118.88350581]
[1740669102768,0.05451453,137.8,137.73,97.14350581]
[1740669103073,0.05451453,137.8,137.73,21.74]
[1740669103273,9.867e-05,137.8,137.77,97.14350581]
[1740669103475,9.867e-05,137.8,137.69,3.7851]
[1740669103671,13.1,137.87,137.74,97.14350581]
[1740669104067,13.1,137.87,137.76,118.88350581]
[1740669104274,621.57668166,137.81,137.78,60.71097885]
[1740669104575,621.57668166,137.81,137.8,0.05219847]
[1740669106076,0.0535519,137.83,137.8,0.05219847]
[1740669106275,21.8135519,137.83,137.8,0.05219847]
[1740669106471,1.33451741,137.82,137.8,0.05219847]
[1740669106671,1.33451741,137.81,137.59,7.6328]
[1740669106877,1.33451741,137.8,137.64,82.50317732]
[1740669107077,1.13186538,137.84,137.64,82.50317732]
[1740669107078,14.43451741,137.79,137.64,82.50317732]
[1740669107283,1.33451741,137.78,137.64,252.356102]
[1740669107478,198.59451741,137.77,137.64,7.2707]
[1740669107681,197.26,137.77,137.59,7.6328]
[1740669107880,0.04887781,137.72,137.64,24.33065036]
[1740669108281,1.45232735,137.71,137.65,7.27]
[1740669108481,1.45232735,137.71,137.64,24.33065036]
[1740669108882,0.05096187,137.69,137.59,7.6328]
[1740669109079,0.05096187,137.69,137.63,24.33065036]
[1740669109283,1.45232735,137.71,137.64,46.07065036]
[1740669109485,0.05263189,137.67,137.66,53.34015036]
[1740669109681,0.05263189,137.67,137.66,31.60015036]
[1740669109985,0.05203723,137.68,137.66,24.33065036]
[1740669110180,1.45274932,137.67,137.66,24.33065036]
[1740669110381,1.45274932,137.67,137.53,395.61128269]
[1740669110577,1.45274932,137.67,137.65,53.34095036]
[1740669110975,1.45274932,137.67,137.65,298.42675236]
[1740669111183,1.50443312,137.67,137.65,305.69705236]
[1740669111378,1.50443312,137.67,137.65,298.42675236]
[1740669111588,1.50443312,137.67,137.61,7.2721]
[1740669111785,1.50443312,137.67,137.61,46.07065036]
[1740669111985,1.45274932,137.67,137.62,24.33065036]
[1740669112182,0.05178434,137.65,137.62,46.07065036]
[1740669112383,1.45306596,137.64,137.63,46.07065036]
[1740669112781,1.45306596,137.64,137.63,53.34215036]
[1740669113481,1.45306596,137.64,137.53,379.53025573]
[1740669113686,1.45306596,137.64,137.59,46.07065036]
[1740669114184,0.0468486,137.63,137.53,114.09415373]
[1740669114383,1.45327713,137.62,137.53,114.09415373]
[1740669114590,0.3704,137.75,137.62,46.07065036]
[1740669114789,13.06,137.74,137.62,21.74]
[1740669115087,13.06,137.74,137.63,46.07065036]
[1740669115485,13.06,137.74,137.55,3.8366]
[1740669115689,0.0488314,137.7,137.67,0.04892131]
[1740669115890,7.2673,137.71,137.58,46.07065036]
[1740669116084,7.2673,137.71,137.55,3.8366]
[1740669116282,20.326,137.74,137.61,31.60285036]
[1740669116485,13.06,137.74,137.6,9.6381234]
[1740669116689,13.06,137.74,137.55,3.8366]
[1740669116889,13.06,137.74,137.57,9.6381234]
[1740669117187,0.0500651,137.66,137.57,9.6381234]
[1740669117393,13.1500651,137.66,137.57,261.9942254]
[1740669117699,0.05070216,137.63,137.57,261.9942254]
[1740669118692,0.05070216,137.63,137.49,14.5576]
[1740669118892,0.05070216,137.63,137.55,9.6381234]
[1740669119194,13.1,137.66,137.55,9.6381234]
[1740669119392,0.04876905,137.6,137.51,3.7558]
[1740669119592,1.45359401,137.59,137.54,9.6381234]
[1740669120090,0.05496058,137.58,137.54,9.6381234]
[1740669120290,0.05496058,137.58,137.5,7.278]
[1740669120589,13.08,137.58,137.47,260.269002]
[1740669120792,1.45380533,137.57,137.49,9.6381234]
[1740669120994,0.0492364,137.55,137.48,9.6381234]
[1740669121292,1.45412243,137.54,137.47,269.9071254]
[1740669121489,1.45412243,137.54,137.47,7.9129]
[1740669121690,1.45412243,137.54,137.47,4.1094]
[1740669121896,0.05524819,137.52,137.43,7.2819]
[1740669122091,0.05524819,137.52,137.43,261.9942254]
[1740669122397,0.0533503,137.49,137.44,9.6381234]
[1740669122588,0.0533503,137.49,137.39,7.53]
[1740669122793,1.45475705,137.48,137.42,7.2826]
[1740669123095,0.05485571,137.45,137.39,233.09169844]
[1740669123291,1.45518044,137.44,137.39,233.09169844]
[1740669123500,1.45518044,137.44,137.39,7.53]
[1740669124194,1.5737,137.57,137.45,7.2809]
[1740669124195,14.6337,137.57,137.45,7.2809]
[1740669124396,13.06,137.57,137.39,233.03684273]
[1740669124799,1.33666377,137.56,137.4,3.9468]
[1740669124997,1.33666377,137.55,137.4,3.9468]
[1740669125198,1.33666377,137.54,137.4,229.45364273]
[1740669125493,0.0458195,137.49,137.46,0.0489868]
[1740669125695,1.5737,137.56,137.36,179.85595984]
[1740669125894,1.33688575,137.55,137.36,179.85595984]
[1740669126099,1.33688575,137.54,137.36,179.85595984]
[1740669126298,13.06,137.55,137.36,179.85595984]
[1740669126600,13.06,137.55,137.43,7.2818]
[1740669126793,0.04783731,137.47,137.43,7.2818]
[1740669127102,13.06,137.55,137.43,225.50684273]
[1740669127295,0.04576508,137.46,137.42,7.2825]
[1740669127494,13.06,137.55,137.36,405.36280257]
[1740669127697,0.04952144,137.45,137.36,405.36280257]
[1740669128093,1.3367156,137.52,137.36,179.85595984]
[1740669128291,0.05056899,137.42,137.39,7.2838]
[1740669128502,1.33686758,137.54,137.36,179.85595984]
[1740669128698,0.05258156,137.42,137.36,143.42343288]
[1740669128903,0.3143,137.58,137.36,143.42343288]
[1740669129204,1.33651429,137.57,137.36,165.26343288]
[1740669129402,7.2741,137.58,137.43,7.282]
[1740669129701,1.33652801,137.57,137.39,128.66573776]
[1740669129898,13.04,137.6,137.46,7.2802]
[1740669130096,1.33640108,137.59,137.39,128.66573776]
[1740669130297,0.04968606,137.54,137.52,0.04707848]
[1740669130598,13.04,137.62,137.39,354.17258049]
[1740669130803,1.33607325,137.61,137.4,29.8103]
[1740669130999,1.33607325,137.6,137.4,29.8103]
[1740669131192,1.33607325,137.59,137.4,233.56714273]
[1740669131397,3.781,137.59,137.4,233.56714273]
[1740669131593,8.61107,137.58,137.4,204.41821577]
[1740669131795,0.04832975,137.51,137.48,0.05510165]
[1740669132104,13.04,137.53,137.39,291.01035353]
[1740669132305,0.04736904,137.51,137.48,0.05158666]
[1740669132704,13.04,137.53,137.36,165.17343288]
[1740669132906,0.04943293,137.51,137.48,0.05261135]
[1740669133203,13.04,137.53,137.41,7.2828]
[1740669133402,0.04654573,137.51,137.48,0.05420497]
[1740669133799,13.04,137.53,137.36,143.42343288]
[1740669133994,0.04965488,137.51,137.48,0.05017319]
[1740669134205,13.04,137.53,137.36,143.42343288]
[1740669134498,0.04852656,137.51,137.36,143.42343288]
[1740669134804,0.0524611,137.46,137.43,0.05421815]
[1740669135206,13.04,137.53,137.4,7.2832]
[1740669135406,0.05241602,137.46,137.43,0.04769948]
[1740669135703,13.04,137.53,137.42,7.2823]
[1740669135894,0.05128009,137.46,137.43,0.05451682]
[1740669136098,13.04,137.53,137.37,3.9186]
[1740669136300,0.04630532,137.46,137.43,0.05580971]
[1740669136694,1.33673998,137.52,137.37,3.9186]
[1740669136899,0.04921116,137.46,137.43,0.05337956]
[1740669137297,13.04,137.53,137.38,7.8642]
[1740669137500,0.05140128,137.46,137.43,0.05085603]
[1740669137702,1.33651411,137.55,137.43,0.05085603]
[1740669137903,13.04,137.6,137.37,19.01112907]
[1740669138204,1.33624149,137.59,137.38,14.5692]
[1740669138402,13.04,137.6,137.52,7.2773]
[1740669138599,4.0635,137.62,137.44,13.04]
[1740669138799,13.04,137.61,137.44,13.04]
[1740669138996,0.05038588,137.54,137.52,0.05493391]
[1740669139195,3.9472,137.6,137.44,197.13461577]
[1740669139407,0.05442079,137.54,137.52,0.04848264]
[1740669139605,14.37676647,137.53,137.52,0.04848264]
[1740669140008,14.37676647,137.53,137.36,200.88795589]
[1740669140209,1.33676647,137.52,137.37,3.9236]
[1740669140507,13.04,137.53,137.39,7.284]
[1740669140707,1.33695381,137.52,137.37,201.05821577]
[1740669141008,1.33695381,137.51,137.33,93.91111096]
[1740669141208,0.04856878,137.46,137.43,0.04797563]
[1740669141405,197.7,137.54,137.43,0.04797563]
[1740669141810,197.7,137.54,137.38,13.04]
[1740669142010,13.04,137.58,137.39,14.5683]
[1740669142212,1.33647212,137.57,137.47,7.2795]
[1740669142512,17.158,137.59,137.39,14.5683]
[1740669142810,13.04,137.59,137.51,0.05120434]
[1740669143010,197.7,137.63,137.41,25.8141]
[1740669143316,1.33598519,137.62,137.43,36.3136]
[1740669143505,4.118,137.68,137.43,43.61]
[1740669143810,1.33551755,137.67,137.45,43.61]
[1740669144003,197.72,137.71,137.47,21.75]
[1740669144202,0.05297047,137.57,137.56,7.2752]
[1740669144407,1.33523488,137.69,137.56,4.0641]
[1740669144714,1.33525132,137.68,137.56,168.63680708]
[1740669144908,13.04,137.7,137.56,168.63680708]
[1740669144909,13.04,137.7,137.56,4.0641]
[1740669145510,0.05334129,137.64,137.62,0.0536948]
[1740669145910,13.04,137.7,137.62,0.0536948]
[1740669146111,0.0507277,137.64,137.62,0.0536948]
[1740669146311,13.04,137.7,137.62,0.0536948]
[1740669146507,0.05372753,137.67,137.62,0.0536948]
[1740669146912,0.05372753,137.67,137.49,199.30806784]
[1740669147310,13.04,137.7,137.49,199.30806784]
[1740669147506,1.33517465,137.69,137.52,29.44974903]
[1740669147810,1.33517465,137.68,137.52,29.44974903]
[1740669148005,13.04,137.7,137.52,29.44974903]
[1740669148006,13.04,137.7,137.52,194.02245611]
[1740669148210,0.04734339,137.61,137.59,0.04867463]
[1740669148607,13.04,137.7,137.52,29.44974903]
[1740669148806,0.05419487,137.61,137.59,0.05152714]
[1740669149009,13.05419487,137.61,137.52,194.02245611]
[1740669149209,13.0,137.61,137.52,29.44974903]
[1740669149409,5.14395095,137.6,137.52,29.44974903]
[1740669149615,3.8077,137.6,137.52,29.44974903]
[1740669150009,1.33642214,137.59,137.51,71.54988617]
[1740669150214,0.04696549,137.57,137.55,0.05550565]
[1740669151315,3.8077,137.65,137.55,0.05550565]
[1740669151514,16.9338,137.67,137.55,0.05550565]
[1740669151712,13.0,137.73,137.63,7.2711]
[1740669152018,1.33518971,137.72,137.53,13.0]
[1740669152316,1.33515951,137.71,137.61,7.2724]
[1740669152514,0.05202125,137.64,137.61,0.05194965]
[1740669152812,7.8201,137.76,137.54,3.7382]
[1740669152813,7.8201,137.76,137.55,3.8351]
[1740669153019,13.0,137.75,137.56,13.0]
[1740669153213,4.0486,137.75,137.56,13.0]
[1740669153518,17.0486,137.75,137.56,13.0]
[1740669153906,0.04952958,137.67,137.66,7.2695]
[1740669154212,17.0486,137.75,137.56,177.57270708]
[1740669154413,17.0486,137.75,137.68,7.2685]
[1740669154616,1.45201103,137.74,137.68,7.2685]
[1740669154812,1.45201103,137.74,137.56,13.0]
[1740669155017,1.45201103,137.74,137.56,177.57270708]
[1740669155213,0.05495064,137.66,137.64,0.04693006]
[1740669155412,2.97387697,137.91,137.57,5.00721068]
[1740669155610,12.98,137.78,137.57,5.00721068]
[1740669155819,7.8814,137.83,137.57,5.00721068]
[1740669156226,197.64,137.79,137.58,13.0]
[1740669156519,13.0,137.78,137.71,7.2668]
[1740669156714,13.0,137.78,137.67,0.05131039]
[1740669156919,13.0,137.78,137.55,99.92007074]
[1740669157124,0.05053763,137.74,137.55,264.43776678]
[1740669157314,1.33493917,137.77,137.65,0.05014341]
[1740669157514,0.05196445,137.66,137.55,264.43776678]
[1740669157717,13.0,137.7,137.58,4.99145392]
[1740669157922,0.05252236,137.62,137.59,0.05329866]
[1740669158121,12.98,137.7,137.63,7.2713]
[1740669158322,12.98,137.7,137.59,2.0764]
[1740669158522,197.64,137.79,137.59,2.0764]
[1740669158719,12.98,137.78,137.65,7.2704]
[1740669158916,12.98,137.78,137.59,166.59409604]
[1740669159224,0.051773,137.7,137.67,0.04828071]
[1740669159616,12.98,137.78,137.67,0.04750149]
[1740669159921,12.98,137.78,137.6,3.941]
[1740669160120,0.05376647,137.74,137.71,0.04673172]
[1740669160324,12.98,137.78,137.6,134.10256908]
[1740669160515,0.0476457,137.74,137.71,0.05157044]
[1740669160720,12.98,137.78,137.67,7.269]
[1740669160916,12.98,137.78,137.71,0.05190093]
[1740669160917,0.05336103,137.74,137.71,0.05190093]
[1740669161719,0.05336103,137.74,137.72,7.2662]
[1740669161919,0.05336103,137.74,137.71,0.05190093]
[1740669162119,0.05336103,137.74,137.54,21.75]
[1740669162320,0.05336103,137.74,137.69,7.268]
[1740669162515,210.6,137.79,137.6,12.96]
[1740669162726,210.6,137.79,137.6,143.12156908]
[1740669163225,210.6,137.79,137.61,1.0719]
[1740669163422,0.05502234,137.71,137.68,0.04984513]
[1740669163621,210.6,137.79,137.61,1.0719]
[1740669163926,0.05589496,137.71,137.69,7.2678]
[1740669164122,210.6,137.79,137.68,0.05207048]
[1740669164324,12.94,137.81,137.62,1.15593241]
[1740669164625,12.94,137.8,137.61,1.0719]
[1740669164827,12.94,137.8,137.61,131.23346908]
[1740669165324,12.94,137.8,137.69,0.05521929]
[1740669165325,0.04735848,137.72,137.69,0.05521929]
[1740669165526,12.94,137.8,137.66,7.2697]
[1740669165826,12.94,137.8,137.69,0.05416403]
[1740669165827,0.04623907,137.72,137.69,0.05416403]
[1740669166229,0.04623907,137.72,137.68,7.2688]
[1740669166230,12.94,137.8,137.68,7.2688]
[1740669166423,0.0551276,137.72,137.69,0.0497651]
[1740669166626,12.94,137.8,137.68,7.2688]
[1740669166923,0.05367836,137.72,137.69,0.05269072]
[1740669167124,12.94,137.8,137.68,102.06974212]
[1740669167324,0.05413389,137.75,137.73,0.0497133]
[1740669167529,0.05200885,137.75,137.73,0.0497133]
[1740669168323,0.05200885,137.75,137.61,12.9]
[1740669168526,12.9,137.79,137.62,197.48]
[1740669168925,12.9,137.79,137.62,292.28094212]
[1740669169128,11.8828,137.83,137.62,197.48]
[1740669169329,12.9,137.82,137.62,197.48]
[1740669169634,0.05150315,137.74,137.71,0.0496029]
[1740669170027,12.9,137.82,137.71,94.80094212]
[1740669170228,0.0511222,137.74,137.71,94.85359302]
[1740669170423,12.9,137.82,137.71,94.80094212]
[1740669170631,0.05431183,137.74,137.71,94.84833009]
[1740669170933,0.05191368,137.74,137.71,94.84876586]
[1740669171133,0.05191368,137.74,137.71,0.04782374]
[1740669171434,0.05191368,137.74,137.63,14.5428]
[1740669171625,12.9,137.82,137.63,58.4162389]
[1740669172131,12.9,137.82,137.64,14.5418]
[1740669172527,0.05438499,137.74,137.72,0.05533708]
[1740669172929,12.9,137.82,137.64,14.5418]
[1740669173127,0.05535212,137.74,137.72,0.05459649]
[1740669173526,12.9,137.82,137.72,58.4162389]
[1740669173732,0.04618211,137.74,137.72,58.46759132]
[1740669173934,12.9,137.82,137.72,58.4162389]
[1740669174227,0.04936464,137.74,137.73,7.2662]
[1740669174426,12.9,137.82,137.62,184.61477304]
[1740669174637,0.05126395,137.75,137.72,0.05031272]
[1740669174935,12.9,137.82,137.62,243.03101194]
[1740669175137,0.0463684,137.75,137.72,0.055389]
[1740669175437,12.9,137.82,137.62,243.03101194]
[1740669175630,0.04849575,137.75,137.72,0.05378037]
[1740669175824,20.1617,137.82,137.65,7.2701]
[1740669176030,11.8828,137.83,137.65,12.88]
[1740669176237,0.05093828,137.75,137.72,0.0467504]
[1740669176430,11.8828,137.83,137.72,0.0467504]
[1740669176631,11.8828,137.83,137.65,34.63]
[1740669177139,4.0899,137.83,137.65,56.49]
[1740669177531,0.04760485,137.75,137.73,0.05602474]
[1740669177832,4.0899,137.83,137.66,12.88]
[1740669178042,4.0899,137.83,137.66,71.2962389]
[1740669179031,0.05120949,137.76,137.73,0.04981825]
[1740669179237,4.0899,137.83,137.66,12.88]
[1740669179536,0.05123143,137.76,137.73,0.04883052]
[1740669179937,7.2618,137.82,137.67,4.88583703]
[1740669180137,0.05192893,137.76,137.73,0.05360649]
[1740669180540,4.0899,137.83,137.65,106.23940369]
[1740669180830,0.05506924,137.76,137.73,0.05576543]
[1740669181036,4.0899,137.83,137.65,106.23940369]
[1740669181434,0.05036055,137.76,137.73,0.04916015]
[1740669181637,12.86,137.76,137.65,47.82316479]
[1740669181836,7.5031,137.75,137.65,106.23940369]
[1740669182631,0.04709128,137.71,137.65,106.23940369]
[1740669182834,0.04709128,137.71,137.69,0.0461912]
[1740669183135,0.04709128,137.71,137.61,17.59890238]
[1740669183136,21.82709128,137.71,137.61,17.59890238]
[1740669183333,0.04709128,137.71,137.61,58.4162389]
[1740669183532,7.5031,137.75,137.61,21.98371194]
[1740669183739,7.5031,137.75,137.54,118.99884296]
[1740669183936,1.33537176,137.74,137.54,118.99884296]
[1740669184135,0.05264458,137.66,137.63,0.04803531]
[1740669184536,12.84,137.67,137.54,119.10284296]
[1740669184732,0.04745289,137.66,137.63,0.0459249]
[1740669184936,12.84,137.67,137.54,0.104]
[1740669185436,0.05187689,137.62,137.59,0.052416]
[1740669185842,7.5031,137.75,137.64,7.2709]
[1740669186042,7.5031,137.75,137.55,12.84]
[1740669186542,7.5031,137.75,137.58,64.58269988]
[1740669186935,0.05377714,137.68,137.65,0.047846]
[1740669187244,7.5031,137.75,137.58,86.51453493]
[1740669187445,0.04725082,137.68,137.65,0.04917547]
[1740669187645,7.5031,137.75,137.58,86.51453493]
[1740669187840,0.0527552,137.68,137.65,0.05179951]
[1740669188035,7.5031,137.75,137.58,64.58269988]
[1740669188237,3.9837,137.74,137.58,64.58269988]
[1740669188442,0.04789582,137.68,137.65,0.05112339]
[1740669188643,3.9837,137.74,137.61,7.2722]
[1740669188843,0.04864777,137.68,137.65,0.05292609]
[1740669189048,0.04864777,137.68,137.63,7.2713]
[1740669189049,3.9837,137.74,137.58,64.58269988]
[1740669189345,3.9837,137.74,137.65,0.0488823]
[1740669189346,0.0459099,137.68,137.65,0.0488823]
[1740669189546,3.9837,137.74,137.58,28.15017292]
[1740669189742,0.05375284,137.68,137.65,0.05524795]
[1740669189945,3.9837,137.74,137.62,7.2716]
[1740669190249,0.0546991,137.68,137.65,0.05366147]
[1740669190544,3.9837,137.74,137.62,21.93183505]
[1740669190746,0.04823638,137.68,137.65,0.05470098]
[1740669190949,3.9837,137.74,137.62,21.93183505]
[1740669191244,0.05231746,137.68,137.65,0.05255536]
[1740669191443,3.9837,137.74,137.64,7.2709]
[1740669191653,0.05058991,137.68,137.65,0.04755553]
[1740669192044,0.04848348,137.68,137.65,21.98296247]
[1740669192337,0.04848348,137.68,137.65,0.05112742]
[1740669192744,0.04848348,137.68,137.63,7.2711]
[1740669192944,3.9837,137.74,137.63,7.2711]
[1740669193246,3.9837,137.74,137.64,0.1026]
[1740669193548,1.13181522,137.82,137.64,0.1026]
[1740669193549,4.0487,137.81,137.64,0.1026]
[1740669193747,8.0025,137.83,137.64,0.1026]
[1740669193944,0.04586267,137.74,137.71,0.05058486]
[1740669194245,12.88,137.9,137.7,12.88]
[1740669194450,20.8689,137.9,137.71,1.14634159]
[1740669194648,20.8689,137.9,137.71,8.32975769]
[1740669194948,160.82815828,137.91,137.72,8.43235769]
[1740669195149,160.82815828,137.91,137.73,8.32975769]
[1740669195344,0.04599862,137.81,137.79,0.04868244]
[1740669195539,3.9945,137.92,137.79,0.04868244]
[1740669195745,3.9945,137.92,137.74,1.14604795]
[1740669195940,3.9945,137.92,137.71,1.14604795]
[1740669196241,3.9945,137.92,137.72,1.14604291]
[1740669196440,33.66195562,137.94,137.72,1.14604291]
[1740669196649,3.771e-05,137.83,137.81,0.04711818]
[1740669196849,33.66195562,137.94,137.81,0.04711818]
[1740669197147,33.66195562,137.94,137.83,7.2606]
[1740669197346,29.66755562,137.94,137.78,12.9]
[1740669197546,29.66755562,137.94,137.79,1.14527617]